fUSD/lending_fUSD_20241112
["ID","MTS","AMOUNT","RATE_DAILY","PERIOD"]
[342039774,1731379843154,-150.0,0.00014898,2]
[342039776,1731379843163,-150.0,0.00014898,2]
[342039778,1731379843172,-150.0,0.00014898,2]
[342039780,1731379843181,-150.0,0.00014898,2]
[342039782,1731379843192,-150.0,0.00014898,2]
[342039784,1731379843201,-150.0,0.00014898,2]
[342039786,1731379843210,-150.0,0.00014898,2]
[342039788,1731379843220,-150.0,0.00014898,2]
[342039790,1731379843229,-150.0,0.00014898,2]
[342039792,1731379843238,-150.0,0.00014898,2]
[342039794,1731379843247,-150.0,0.00014898,2]
[342039796,1731379843257,-150.0,0.00014898,2]
[342039798,1731379843266,-150.0,0.00014898,2]
[342039800,1731379843275,-150.0,0.00014898,2]
[342039802,1731379843284,-150.0,0.00014898,2]
[342039804,1731379843293,-150.0,0.00014898,2]
[342039806,1731379843303,-150.0,0.00014898,2]
[342039808,1731379843312,-150.0,0.00014898,2]
[342039810,1731379843321,-150.0,0.00014898,2]
[342039812,1731379843331,-150.0,0.00014898,2]
[342039814,1731379843340,-150.0,0.00014898,2]
[342039815,1731379843349,-150.0,0.00014898,2]
[342039817,1731379843359,-150.0,0.00014898,2]
[342039819,1731379843368,-150.0,0.00014898,2]
[342039821,1731379843377,-150.0,0.00014898,2]
[342039823,1731379843393,-150.0,0.00014898,2]
[342039825,1731379843408,-150.0,0.00014898,2]
[342039827,1731379843418,-150.0,0.00014898,2]
[342039829,1731379843427,-150.0,0.00014898,2]
[342039831,1731379843436,-150.0,0.00014898,2]
[342039833,1731379843445,-150.0,0.00014898,2]
[342039835,1731379843455,-186.36975096,0.00014898,2]
[342039837,1731379843463,-285.82211421,0.00014898,2]
[342039839,1731379843473,-182.98747461,0.00014899,2]
[342039841,1731379843482,-500.0,0.00014899,2]
[342039843,1731379843492,-500.0,0.00014899,2]
[342039845,1731379843501,-527.18,0.00014899,2]
[342039847,1731379843510,-500.0,0.00014899,2]
[342039849,1731379843520,-2537.34,0.00014899,2]
[342039851,1731379843529,-500.0,0.00014899,2]
[342039853,1731379843539,-254.66228146,0.00014899,2]
[342039857,1731379843562,-358.19220458,0.00014899,2]
[342039859,1731379843573,-720.50551396,0.00014899,2]
[342039861,1731379843582,-500.0,0.00014899,2]
[342039863,1731379843592,-500.0,0.00014899,2]
[342039865,1731379843601,-500.0,0.00014899,2]
[342039867,1731379843610,-632.73,0.00014899,2]
[342039869,1731379843619,-1076.53,0.00014899,2]
[342039871,1731379843631,-500.0,0.00014899,2]
[342039873,1731379843641,-540.21871278,0.00014899,2]
[342039875,1731379843650,-500.0,0.00014899,2]
[342039877,1731379843659,-1331.59,0.00014899,2]
[342039879,1731379843669,-150.0,0.00014899,2]
[342039881,1731379843678,-500.0,0.00014899,2]
[342039883,1731379843687,-500.0,0.00014899,2]
[342039885,1731379843696,-187.22731015,0.00014899,2]
[342039887,1731379843705,-286.27292193,0.00014899,2]
[342039889,1731379843714,-425.45344389,0.000149,2]
[342039891,1731379843724,-425.45344389,0.000149,2]
[342039893,1731379843733,-425.45344389,0.000149,2]
[342039895,1731379843742,-425.45344389,0.000149,2]
[342039897,1731379843751,-425.45344389,0.000149,2]
[342039899,1731379843760,-425.45344389,0.000149,2]
[342039901,1731379843769,-425.45344389,0.000149,2]
[342039903,1731379843779,-425.45344389,0.000149,2]
[342039905,1731379843787,-425.45344389,0.000149,2]
[342039907,1731379843796,-425.45344389,0.000149,2]
[342039909,1731379843805,-425.45344389,0.000149,2]
[342039911,1731379843814,-425.45344389,0.000149,2]
[342039913,1731379843823,-425.45344389,0.000149,2]
[342039915,1731379843831,-425.45344389,0.000149,2]
[342039917,1731379843840,-425.45344389,0.000149,2]
[342039919,1731379843849,-425.45344389,0.000149,2]
[342039921,1731379843858,-425.45344389,0.000149,2]
[342039922,1731379843866,-425.45344389,0.000149,2]
[342039925,1731379843876,-425.45344389,0.000149,2]
[342039927,1731379843888,-425.45,0.000149,2]
[342039929,1731379843897,-638.18016583,0.000149,2]
[342039930,1731379843906,-638.18016583,0.000149,2]
[342039932,1731379843915,-638.18016583,0.000149,2]
[342039934,1731379843925,-638.18016583,0.000149,2]
[342039936,1731379843934,-638.18016583,0.000149,2]
[342039938,1731379843943,-638.18016583,0.000149,2]
[342039940,1731379843952,-638.18016583,0.000149,2]
[342039941,1731379843961,-638.18016583,0.000149,2]
[342039942,1731379843971,-638.18016583,0.000149,2]
[342039943,1731379843982,-638.18016583,0.000149,2]
[342039944,1731379843993,-638.18016583,0.000149,2]
[342039945,1731379844002,-638.18016583,0.000149,2]
[342039946,1731379844011,-638.18016583,0.000149,2]
[342039947,1731379844020,-638.18016583,0.000149,2]
[342039948,1731379844029,-638.18016583,0.000149,2]
[342039949,1731379844038,-638.18016583,0.000149,2]
[342039950,1731379844047,-638.18016583,0.000149,2]
[342039951,1731379844057,-638.18016583,0.000149,2]
[342039952,1731379844066,-638.18016583,0.000149,2]
[342039953,1731379844075,-638.18,0.000149,2]
[342039954,1731379844084,-2000.0,0.000149,2]
[342039955,1731379844093,-972.9264,0.000149,2]
[342039956,1731379844102,-2000.0,0.000149,2]
[342039957,1731379844112,-200.0,0.000149,2]
[342039958,1731379844124,-200.0,0.000149,2]
[342039959,1731379844135,-200.0,0.000149,2]
[342039960,1731379844144,-215.3281399,0.000149,2]
[342039961,1731379844152,-215.3281399,0.000149,2]
[342039962,1731379844162,-215.3281399,0.000149,2]
[342039963,1731379844171,-215.3281399,0.000149,2]
[342039964,1731379844180,-215.3281399,0.000149,2]
[342039965,1731379844191,-215.3281399,0.000149,2]
[342039966,1731379844200,-215.3281399,0.000149,2]
[342039967,1731379844209,-215.3281399,0.000149,2]
[342039968,1731379844218,-215.3281399,0.000149,2]
[342039969,1731379844227,-215.3281399,0.000149,2]
[342039970,1731379844236,-215.3281399,0.000149,2]
[342039971,1731379844246,-215.3281399,0.000149,2]
[342039972,1731379844256,-215.3281399,0.000149,2]
[342039973,1731379844265,-215.3281399,0.000149,2]
[342039974,1731379844274,-215.3281399,0.000149,2]
[342039975,1731379844284,-215.3281399,0.000149,2]
[342039976,1731379844293,-215.3281399,0.000149,2]
[342039977,1731379844302,-215.3281399,0.000149,2]
[342039978,1731379844311,-215.3281399,0.000149,2]
[342039979,1731379844321,-215.32,0.000149,2]
[342039981,1731379844330,-322.99220985,0.000149,2]
[342039982,1731379844339,-322.99220985,0.000149,2]
[342039984,1731379844348,-322.99220985,0.000149,2]
[342039986,1731379844357,-322.99220985,0.000149,2]
[342039988,1731379844367,-322.99220985,0.000149,2]
[342039990,1731379844376,-322.99220985,0.000149,2]
[342039992,1731379844387,-322.99220985,0.000149,2]
[342039994,1731379844396,-322.99220985,0.000149,2]
[342039996,1731379844406,-322.99220985,0.000149,2]
[342039998,1731379844415,-322.99220985,0.000149,2]
[342040000,1731379844425,-322.99220985,0.000149,2]
[342040002,1731379844434,-322.99220985,0.000149,2]
[342040004,1731379844444,-322.99220985,0.000149,2]
[342040006,1731379844453,-322.99220985,0.000149,2]
[342040008,1731379844463,-322.99220985,0.000149,2]
[342040010,1731379844471,-322.99220985,0.000149,2]
[342040012,1731379844480,-322.99220985,0.000149,2]
[342040014,1731379844490,-322.99220985,0.000149,2]
[342040016,1731379844499,-322.99220985,0.000149,2]
[342040018,1731379844509,-322.99,0.000149,2]
[342040020,1731379844518,-285.82211421,0.000149,2]
[342040022,1731379844527,-150.0,0.000149,2]
[342040024,1731379844536,-150.0,0.000149,2]
[342040026,1731379844546,-150.0,0.00014902,2]
[342040048,1731379844729,-150.0,0.00014904,2]
[342040050,1731379844747,-150.0,0.00014904,2]
[342040052,1731379844757,-150.0,0.00014905,2]
[342040054,1731379844766,-150.0,0.00014905,2]
[342040056,1731379844776,-150.0,0.00014905,2]
[342040059,1731379844785,-1500.0,0.00014907,2]
[342040061,1731379844795,-150.0,0.00014907,2]
[342040063,1731379844804,-150.0,0.00014909,2]
[342040065,1731379844815,-150.0,0.00014909,2]
[342040067,1731379844825,-150.0,0.00014911,2]
[342040069,1731379844834,-150.0,0.00014911,2]
[342040071,1731379844843,-150.0,0.00014914,2]
[342040073,1731379844853,-150.0,0.00014916,2]
[342040075,1731379844862,-150.0,0.00014917,2]
[342040077,1731379844874,-150.0,0.00014917,2]
[342040079,1731379844887,-150.0,0.00014922,2]
[342040081,1731379844898,-150.0,0.00014923,2]
[342040083,1731379844907,-150.0,0.00014924,2]
[342040085,1731379844917,-150.0,0.00014925,2]
[342040087,1731379844927,-150.0,0.00014927,2]
[342040089,1731379844936,-2000.0,0.0001493,2]
[342040091,1731379844946,-150.0,0.00014931,2]
[342040093,1731379844955,-150.0,0.00014933,2]
[342040095,1731379844964,-150.0,0.00014933,2]
[342040097,1731379844973,-150.0,0.00014934,2]
[342040099,1731379844983,-150.0,0.00014936,2]
[342040101,1731379844992,-150.0,0.00014937,2]
[342040103,1731379845001,-150.0,0.00014938,2]
[342040105,1731379845011,-150.0,0.00014939,2]
[342040107,1731379845020,-563.0,0.0001494,2]
[342040109,1731379845029,-1254.0,0.0001494,2]
[342040111,1731379845038,-453.0,0.0001494,2]
[342040113,1731379845047,-344.074,0.0001494,2]
[342040115,1731379845056,-628.0,0.0001494,2]
[342040117,1731379845065,-559.0,0.0001494,2]
[342040118,1731379845074,-1259.0,0.0001494,2]
[342040121,1731379845083,-908.637,0.0001494,2]
[342040123,1731379845092,-150.0,0.0001494,2]
[342040125,1731379845101,-150.0,0.00014943,2]
[342040126,1731379845110,-150.0,0.00014945,2]
[342040128,1731379845120,-150.048,0.00014945,2]
[342040130,1731379845133,-150.0,0.00014946,2]
[342040132,1731379845142,-150.0,0.00014947,2]
[342040134,1731379845151,-150.0,0.00014948,2]
[342040136,1731379845161,-150.0,0.0001495,2]
[342040138,1731379845170,-150.0,0.00014951,2]
[342040140,1731379845180,-150.0,0.00014954,2]
[342040142,1731379845189,-150.0,0.00014954,2]
[342040144,1731379845200,-150.0,0.00014955,2]
[342040146,1731379845209,-150.0,0.00014956,2]
[342040148,1731379845219,-150.0,0.00014957,2]
[342040150,1731379845227,-2000.0,0.00014958,2]
[342040152,1731379845236,-150.0,0.00014958,2]
[342040154,1731379845246,-150.0,0.00014962,2]
[342040156,1731379845255,-150.0,0.00014963,2]
[342040158,1731379845264,-150.0,0.00014963,2]
[342040160,1731379845273,-150.0,0.00014964,2]
[342040162,1731379845282,-150.0,0.00014964,2]
[342040164,1731379845292,-150.0,0.00014965,2]
[342040166,1731379845301,-150.0,0.00014966,2]
[342040168,1731379845310,-150.0,0.00014966,2]
[342040170,1731379845319,-150.0,0.00014967,2]
[342040172,1731379845328,-150.0,0.0001497,2]
[342040173,1731379845337,-150.0,0.0001497,2]
[342040174,1731379845348,-150.0,0.0001497,2]
[342040175,1731379845357,-150.0,0.00014971,2]
[342040176,1731379845367,-500.0,0.00014973,2]
[342040177,1731379845376,-500.0,0.00014973,2]
[342040178,1731379845389,-150.0,0.00014975,2]
[342040179,1731379845399,-1500.0,0.00014976,2]
[342040180,1731379845408,-150.0,0.00014979,2]
[342040181,1731379845418,-150.0,0.00014979,2]
[342040182,1731379845427,-150.0,0.0001498,2]
[342040183,1731379845437,-150.0,0.00014983,2]
[342040184,1731379845447,-999.96,0.00014984,2]
[342040185,1731379845456,-554.97,0.00014984,2]
[342040186,1731379845466,-500.0,0.00014984,2]
[342040187,1731379845476,-500.0,0.00014985,2]
[342040188,1731379845486,-150.0,0.00014985,2]
[342040190,1731379845495,-500.0,0.00014985,2]
[342040191,1731379845504,-500.0,0.00014985,2]
[342040192,1731379845514,-500.0,0.00014985,2]
[342040193,1731379845523,-150.0,0.00014985,2]
[342040194,1731379845533,-500.0,0.00014985,2]
[342040195,1731379845542,-500.83,0.00014985,2]
[342040196,1731379845551,-500.0,0.00014985,2]
[342040197,1731379845560,-500.0,0.00014985,2]
[342040198,1731379845569,-500.0,0.00014985,2]
[342040199,1731379845578,-753.53,0.00014985,2]
[342040200,1731379845587,-3.99966866,0.00014985,2]
[342040201,1731379845600,-260.49727246,0.00014985,2]
[342040202,1731379845611,-500.51305888,0.00014985,2]
[342040203,1731379845619,-500.0,0.00014985,2]
[342040204,1731379845628,-563.05,0.00014985,2]
[342040205,1731379845639,-346.17875597,0.00014985,2]
[342040206,1731379845647,-366.35034784,0.00014985,2]
[342040207,1731379845655,-265.25084678,0.00014985,2]
[342040208,1731379845664,-500.0,0.00014985,2]
[342040209,1731379845673,-500.0,0.00014985,2]
[342040210,1731379845682,-511.44936656,0.00014985,2]
[342040211,1731379845691,-500.0,0.00014985,2]
[342040212,1731379845700,-500.0,0.00014985,2]
[342040213,1731379845709,-1017.75254899,0.00014985,2]
[342040214,1731379845718,-1422.11,0.00014985,2]
[342040215,1731379845727,-2151.57544374,0.00014985,2]
[342040220,1731379845774,-1029.19119656,0.00014985,2]
[342040223,1731379845791,-523.79606704,0.00014985,2]
[342040225,1731379845989,-5473.17342165,0.00014985,2]
[342040226,1731379846000,-2618.37387101,0.00014985,2]
[342040227,1731379846009,-500.0,0.00014985,2]
[342040228,1731379846018,-466.61785387,0.00014985,2]
[342040229,1731379846225,-570.57002,0.00014985,2]
[342040230,1731379846283,-354.51212613,0.00014985,2]
[342040231,1731379846293,-583.42547107,0.00014985,2]
[342040232,1731379846302,-500.0,0.00014985,2]
[342040233,1731379846312,-500.0,0.00014985,2]
[342040234,1731379846322,-500.0,0.00014985,2]
[342040235,1731379846332,-3601.43,0.00014985,2]
[342040236,1731379846342,-709.71,0.00014985,2]
[342040237,1731379846351,-500.0,0.00014985,2]
[342040238,1731379846361,-500.0,0.00014985,2]
[342040239,1731379846371,-500.0,0.00014985,2]
[342040240,1731379846383,-855.06,0.00014985,2]
[342040241,1731379846392,-500.0,0.00014985,2]
[342040242,1731379846402,-500.0,0.00014985,2]
[342040243,1731379846411,-500.0,0.00014985,2]
[342040244,1731379846420,-500.0,0.00014985,2]
[342040245,1731379846430,-823.08,0.00014985,2]
[342040246,1731379846440,-500.0,0.00014985,2]
[342040247,1731379846449,-500.0,0.00014985,2]
[342040248,1731379846459,-500.0,0.00014985,2]
[342040249,1731379846469,-1326.29,0.00014985,2]
[342040250,1731379846479,-558.04726484,0.00014985,2]
[342040251,1731379846489,-500.0,0.00014985,2]
[342040252,1731379846499,-500.0,0.00014985,2]
[342040253,1731379846508,-500.0,0.00014985,2]
[342040254,1731379846518,-903.76,0.00014985,2]
[342040255,1731379846528,-500.0,0.00014985,2]
[342040256,1731379846538,-500.35352872,0.00014985,2]
[342040257,1731379846548,-820.34,0.00014985,2]
[342040258,1731379846558,-6854.48,0.00014985,2]
[342040259,1731379846570,-500.0,0.00014985,2]
[342040260,1731379846580,-500.0,0.00014985,2]
[342040261,1731379846590,-500.0,0.00014985,2]
[342040262,1731379846600,-532.82974915,0.00014985,2]
[342040263,1731379846611,-2885.3,0.00014985,2]
[342040264,1731379846621,-500.0,0.00014985,2]
[342040265,1731379846633,-500.0,0.00014985,2]
[342040266,1731379846645,-500.0,0.00014985,2]
[342040267,1731379846659,-500.0,0.00014985,2]
[342040268,1731379846669,-1136.07,0.00014985,2]
[342040269,1731379846679,-500.0,0.00014985,2]
[342040270,1731379846690,-631.35330438,0.00014985,2]
[342040271,1731379846700,-500.0,0.00014985,2]
[342040272,1731379846711,-500.0,0.00014985,2]
[342040273,1731379846720,-500.0,0.00014985,2]
[342040274,1731379846730,-502.50634809,0.00014985,2]
[342040275,1731379846740,-999.96,0.00014985,2]
[342040276,1731379846750,-999.96,0.00014985,2]
[342040277,1731379846761,-999.96,0.00014985,2]
[342040278,1731379846771,-500.0,0.00014985,2]
[342040279,1731379846781,-647.80539802,0.00014985,2]
[342040280,1731379846791,-500.0,0.00014985,2]
[342040281,1731379846801,-554.97,0.00014985,2]
[342040282,1731379846811,-554.97,0.00014985,2]
[342040283,1731379846820,-554.97,0.00014985,2]
[342040284,1731379846830,-500.0,0.00014985,2]
[342040285,1731379846840,-500.0,0.00014985,2]
[342040286,1731379846850,-500.0,0.00014985,2]
[342040287,1731379846860,-541.33,0.00014985,2]
[342040288,1731379846870,-214.22778089,0.00014985,2]
[342040289,1731379846880,-500.0,0.00014985,2]
[342040290,1731379846896,-7556.69138364,0.00014986,2]
[342040291,1731379847187,-1339.4052352,0.00014986,2]
[342040292,1731379847201,-3481.85019466,0.00014986,2]
[342040293,1731379883356,6317.7985439,0.00012981,7]
[342040294,1731379996083,510.88624,0.0002482,120]
[342040295,1731380000586,502.956787,0.0002322,120]
[342040296,1731380004452,513.468829,0.00024999,120]
[342040297,1731380007371,202.728698,0.0002482,120]
[342040298,1731380080994,150.0,0.00011028,2]
[342040299,1731380101788,10000.0,0.00012,2]
[342040301,1731380376286,856.93,0.00011742,2]
[342040307,1731380765014,1130.88404465,0.00024,60]
[342040331,1731381032118,-209.03,0.000131,2]
[342040332,1731381032128,-168.9046752,0.00013518,2]
[342040333,1731381032137,-20.2653248,0.00013523,2]
[342040334,1731381032148,-628.6246752,0.00013523,2]
[342040335,1731381032158,-177.64,0.0001353,2]
[342040336,1731381032167,-165.87,0.00013537,2]
[342040337,1731381032177,-1000.0,0.00013544,2]
[342040338,1731381032187,-250.0,0.00013563,2]
[342040339,1731381032196,-5539.75,0.00013584,2]
[342040340,1731381032206,-209.03,0.00013618,2]
[342040341,1731381032215,-300.0,0.00013623,2]
[342040342,1731381032225,-23900.0,0.00013624,2]
[342040343,1731381032235,-3183.04,0.00013624,2]
[342040344,1731381032244,-200.0,0.00013641,2]
[342040345,1731381032254,-250.0,0.00013699,2]
[342040346,1731381032264,-150.0,0.00013699,2]
[342040347,1731381032273,-200.0,0.000137,2]
[342040348,1731381032282,-177.26,0.00013727,2]
[342040349,1731381032292,-177.26,0.00013773,2]
[342040350,1731381032301,-417.7,0.00013793,2]
[342040351,1731381032310,-177.26,0.00013819,2]
[342040352,1731381032319,-177.26,0.00013865,2]
[342040353,1731381032328,-400.0,0.000139,5]
[342040354,1731381032338,-800.0,0.00014,5]
[342040355,1731381032348,-856.93,0.00014005,2]
[342040356,1731381032360,-1600.0,0.00014076,2]
[342040357,1731381032369,-2000.0,0.00014076,2]
[342040358,1731381032379,-1200.0,0.000141,5]
[342040359,1731381032388,-209.03,0.00014135,2]
[342040360,1731381032398,-150.0,0.00014135,2]
[342040361,1731381032407,-1600.0,0.000142,5]
[342040362,1731381032416,-177.64,0.00014207,2]
[342040363,1731381032426,-2000.0,0.000143,5]
[342040364,1731381032435,-150.0,0.00014397,2]
[342040365,1731381032445,-400.0,0.000144,5]
[342040366,1731381032454,-400.0,0.000145,5]
[342040367,1731381032464,-400.0,0.000146,5]
[342040368,1731381032473,-209.03,0.00014652,2]
[342040369,1731381032482,-400.0,0.000147,5]
[342040370,1731381032492,-150.0,0.0001473,2]
[342040371,1731381032501,-530.749,0.00014738,2]
[342040372,1731381032511,-150.0,0.00014743,2]
[342040373,1731381032520,-150.0,0.00014746,2]
[342040374,1731381032534,-150.0,0.00014748,2]
[342040375,1731381032543,-150.0,0.00014751,2]
[342040376,1731381032552,-150.0,0.00014752,2]
[342040377,1731381032561,-150.0,0.00014756,2]
[342040378,1731381032571,-150.0,0.00014764,2]
[342040379,1731381032580,-150.0,0.00014769,2]
[342040380,1731381032589,-150.0,0.00014782,2]
[342040381,1731381032600,-237.94596721,0.000148,2]
[342040382,1731381032611,-183.75900002,0.000148,2]
[342040383,1731381032620,-426.0,0.000148,5]
[342040384,1731381032630,-150.0,0.00014804,2]
[342040385,1731381032639,-150.0,0.00014809,2]
[342040386,1731381032648,-150.0,0.00014816,2]
[342040387,1731381032657,-3000.0,0.0001484,2]
[342040388,1731381032666,-154.62890664,0.0001485,2]
[342040389,1731381032676,-237.94596721,0.0001485,2]
[342040390,1731381032685,-150.0,0.00014855,2]
[342040391,1731381032695,-1500.0,0.00014856,2]
[342040392,1731381032704,-150.0,0.00014863,2]
[342040393,1731381032713,-150.0,0.00014871,2]
[342040394,1731381032722,-500.0,0.00014873,2]
[342040395,1731381032731,-150.0,0.00014878,2]
[342040396,1731381032741,-177.64,0.00014883,2]
[342040398,1731381032750,-177.621912,0.00014886,2]
[342040399,1731381032759,-150.0,0.0001489,2]
[342040401,1731381032768,-500.0,0.00014899,2]
[342040403,1731381032778,-500.0,0.00014899,2]
[342040405,1731381032787,-500.0,0.00014899,2]
[342040406,1731381032796,-500.0,0.00014899,2]
[342040407,1731381032805,-500.0,0.00014899,2]
[342040408,1731381032815,-304.01172635,0.00014899,2]
[342040409,1731381032824,-500.0,0.00014899,2]
[342040410,1731381032833,-500.0,0.00014899,2]
[342040411,1731381032843,-500.0,0.00014899,2]
[342040412,1731381032854,-500.0,0.00014899,2]
[342040413,1731381032864,-500.0,0.00014899,2]
[342040414,1731381032873,-500.0,0.00014899,2]
[342040415,1731381032883,-500.0,0.00014899,2]
[342040416,1731381032892,-500.0,0.00014899,2]
[342040417,1731381032901,-500.0,0.00014899,2]
[342040418,1731381032911,-500.0,0.00014899,2]
[342040419,1731381032920,-500.0,0.00014899,2]
[342040420,1731381032930,-500.0,0.00014899,2]
[342040421,1731381032939,-500.0,0.00014899,2]
[342040422,1731381032948,-500.0,0.00014899,2]
[342040423,1731381032958,-500.0,0.00014899,2]
[342040424,1731381032968,-500.0,0.00014899,2]
[342040425,1731381032978,-500.0,0.00014899,2]
[342040426,1731381032988,-500.0,0.00014899,2]
[342040427,1731381032998,-500.0,0.00014899,2]
[342040428,1731381033008,-500.0,0.00014899,2]
[342040429,1731381033018,-500.0,0.00014899,2]
[342040430,1731381033029,-471.10183091,0.00014899,2]
[342040431,1731381033039,-500.0,0.00014899,2]
[342040432,1731381033049,-500.0,0.00014899,2]
[342040433,1731381033059,-500.0,0.00014899,2]
[342040434,1731381033070,-500.0,0.00014899,2]
[342040435,1731381033080,-599.46924623,0.00014899,2]
[342040436,1731381033090,-343.25106523,0.00014899,2]
[342040437,1731381033099,-13962.3122582,0.00014899,2]
[342040438,1731381033117,-604.32337629,0.00014899,2]
[342040439,1731381033128,-1396.50221221,0.00014899,2]
[342040440,1731381033139,-18360.00006,0.00014899,2]
[342040441,1731381033150,-11004.53444641,0.00014899,2]
[342040442,1731381033181,-250.0,0.00013461,2]
[342040443,1731381033191,-377418.53061427,0.00014899,2]
[342040444,1731381033202,-613.77,0.00014899,2]
[342040445,1731381033213,-1897.36364885,0.00014899,2]
[342040446,1731381033228,-3686.77995549,0.00014899,2]
[342040447,1731381033239,-8332.049264,0.00014899,2]
[342040448,1731381038188,-183.75900002,0.0001485,2]
[342040449,1731381038198,-98.96879998,0.00014899,2]
[342040450,1731381038220,-1015.53,0.00014899,2]
[342040451,1731381038232,-1264.43557993,0.00014899,2]
[342040452,1731381038477,-6294.53940053,0.00014899,2]
[342040453,1731381038488,-2927.12184367,0.00014899,2]
[342040454,1731381038500,-800.0,0.00014899,2]
[342040455,1731381038511,-5099.4905,0.00014899,2]
[342040468,1731381040192,-832.51078729,0.00014899,2]
[342040469,1731381040203,-4000.67331409,0.00014899,2]
[342040470,1731381040214,-3708.26491449,0.00014899,2]
[342040471,1731381040225,-902.7,0.00014899,2]
[342040472,1731381040236,-159486.55098093,0.00014899,2]
[342040473,1731381040246,-9433.61003121,0.00014899,2]
[342040474,1731381040255,-200.0,0.000149,3]
[342040475,1731381040264,-201.88,0.000149,3]
[342040476,1731381040273,-6377.9589878,0.000149,3]
[342040477,1731381040285,-1216.50999992,0.000149,3]
[342040478,1731381040437,-579.99999,0.000149,3]
[342040485,1731381043884,-43628.58500003,0.000149,3]
[342040486,1731381043895,-3030.80617388,0.000149,3]
[342040487,1731381043907,-1530.69507988,0.000149,3]
[342040488,1731381043918,-6192.60483368,0.000149,3]
[342040489,1731381044157,-6594.0,0.000149,3]
[342040492,1731381044169,-7931.81303477,0.000149,3]
[342040494,1731381044180,-451.91587972,0.000149,3]
[342040703,1731381046210,-5862.8479,0.000149,3]
[342040706,1731381046223,-17416.8,0.000149,3]
[342040708,1731381046235,-2647.88879961,0.000149,3]
[342040710,1731381046248,-1015.26996053,0.000149,3]
[342040712,1731381046260,-4382.62436,0.000149,3]
[342040735,1731381046471,-928.41345697,0.000149,3]
[342040737,1731381046483,-4354.35,0.000149,3]
[342040739,1731381046494,-3449.99980841,0.000149,3]
[342041121,1731381059867,-150.0,0.00014402,2]
[342041122,1731381099797,-200.0,0.00013861,2]
[342041123,1731381100005,-200.0,0.00013865,2]
[342041124,1731381100350,-200.0,0.00013879,2]
[342041125,1731381100559,-200.0,0.00013891,2]
[342041126,1731381154843,19803.8375072,0.00012981,7]
[342041127,1731381175182,872.81,0.00011983,2]
[342041133,1731381835877,210.0,0.00025,120]
[342041134,1731381936948,829.16,0.00011205,2]
[342041135,1731381954985,-209.03,0.00013068,2]
[342041136,1731381955333,-156.5,0.00013139,2]
[342041138,1731382051660,200.0,0.00013,2]
[342041142,1731382115568,256.77,0.00012954,2]
[342041144,1731382161089,-23900.0,0.00013039,2]
[342041150,1731382203951,864.7533,0.00013041,2]
[342041164,1731382232280,-158.9,0.00013115,2]
[342041165,1731382232289,-579.38,0.00013139,2]
[342041166,1731382232298,-250.0,0.0001314,2]
[342041167,1731382232307,-9660.85,0.00013141,2]
[342041168,1731382232316,-1000.0,0.00013154,2]
[342041169,1731382232325,-594.87,0.00013459,2]
[342041170,1731382232334,-594.87,0.00013466,2]